[Event "ESP-chT 2nd Division 2019"]
[Site "Linares"]
[Date "2019.08.20"]
[Round "2.30"]
[White "Soler Di Benedetto, Sandra"]
[Black "Barrera Garcia, Rocio"]
[Result "0-1"]
[ECO "A05"]
[WhiteElo "1835"]
[BlackElo "1775"]
[Annotator "NA"]
[PlyCount "84"]
[EventDate "2019.08.19"]
[EventType "team-tourn"]
[EventCountry "ESP"]
[SourceTitle "playchess.com"]
[Source "ChessBase"]
[SourceQuality "1"]
[TimeControl "5400+30"]

1. Nf3 {[%emt 0:00:00]} Nf6 {[%emt 0:00:16]} 2. g3 {[%emt 0:00:00]} g6 {[%emt 0:01:19]} 3. d4 {[%emt 0:00:00]} Bg7 {[%emt 0:02:11]} 4. Bg2 {[%emt 0:00:01]} O-O {[%emt 0:01:07]} 5. O-O {[%emt 0:00:11]} d5 {[%emt 0:04:38]} 6. c4 {[%emt 0:00:09]} dxc4 {[%emt 0:05:56]} 7. Na3 {[%emt 0:00:25]} Nc6 {[%emt 0:08:00]} 8. Nxc4 {[%emt 0:02:49]} Be6 {[%emt 0:03:31]} 9. Nce5 {[%emt 0:12:06]} Bd5 {[%emt 0:05:54]} 10. Nxc6 {[%emt 0:10:52]} Bxc6 {[%emt 0:00:13]} 11. e3 {[%emt 0:00:24]} Qd6 {[%emt 0:07:58]} 12. Qe2 {[%emt 0:13:43]} Rad8 {[%emt 0:06:47]} 13. Bd2 {[%emt 0:09:55]} Ne4 {[%emt 0:03:44]} 14. Rfc1 {[%emt 0:07:48]} Bd5 {[%emt 0:07:55]} 15. a3 {[%emt 0:04:42]} c5 {[%emt 0:06:15]} 16. dxc5 {[%emt 0:02:31]} Nxc5 {[%emt 0:00:23]} 17. Bb4 {[%emt 0:00:30]} b6 {[%emt 0:01:12]} 18. Rd1 {[%emt 0:01:37]} Qc6 {[%emt 0:16:21]} 19. Nd4 {[%emt 0:13:35]} Qb7 {[%emt 0:04:01]} 20. Bxd5 {[%emt 0:02:08]} Rxd5 {[%emt 0:00:12]} 21. Nb5 {[%emt 0:08:34]} Rfd8 {[%emt 0:06:33]} 22. Nc3 {[%emt 0:02:12]} Rxd1+ {[%emt 0:02:48]} 23. Rxd1 {[%emt 0:00:02]} Rxd1+ {[%emt 0:00:34]} 24. Qxd1 {[%emt 0:04:58]} Na6 {[%emt 0:00:30]} 25. Qd8+ {[%emt 0:00:22]} Bf8 {[%emt 0:00:08]} 26. Nd5 {[%emt 0:01:05]} Nxb4 {[%emt 0:00:06]} 27. Nxb4 {[%emt 0:00:15]} Qe4 {[%emt 0:00:27]} 28. Nd5 {[%emt 0:01:23]} Kg7 {[%emt 0:00:53]} 29. b4 {[%emt 0:01:04]} Qd3 {[%emt 0:00:22]} 30. Qa8 {[%emt 0:00:31]} Qxa3 {[%emt 0:01:37]} 31. Kg2 {[%emt 0:00:36]} a5 {[%emt 0:01:49]} 32. b5 {[%emt 0:00:34]} Qc5 {[%emt 0:00:20]} 33. Qb7 {[%emt 0:00:44]} Qxb5 {[%emt 0:00:13]} 34. Nxb6 {[%emt 0:00:15]} e6 {[%emt 0:00:33]} 35. Qc7 {[%emt 0:00:22]} Bb4 {[%emt 0:00:38]} 36. Nd7 {[%emt 0:00:58]} Qd5+ {[%emt 0:01:07]} 37. Kh3 {[%emt 0:00:11]} Bd6 {[%emt 0:00:39]} 38. Qd8 {[%emt 0:00:24]} Qf5+ {[%emt 0:00:32]} 39. Kg2 {[%emt 0:00:03]} a4 {[%emt 0:00:11]} 40. Qb6 {[%emt 0:00:56]} Qd5+ {[%emt 0:01:10]} 41. Kh3 {[%emt 0:00:27]} a3 {[%emt 0:00:16]} 42. Qa5 {[%emt 0:00:36]} Qxa5 {[%emt 0:00:07]} 0-1

[Event "ESP-chT 2nd Division 2019"]
[Site "Linares"]
[Date "2019.08.20"]
[Round "2.31"]
[White "Redondo Benavente, Jose Carlos"]
[Black "Montoliu Cervero, Francisco"]
[Result "1/2-1/2"]
[ECO "B90"]
[WhiteElo "2185"]
[BlackElo "2393"]
[Annotator "ChessBase"]
[PlyCount "81"]
[EventDate "2019.08.19"]
[EventType "team-tourn"]
[EventCountry "ESP"]
[SourceTitle "playchess.com"]
[Source "ChessBase"]
[SourceQuality "1"]
[TimeControl "5400+30"]

1. e4 {[%emt 0:03:37]} c5 {[%emt 0:00:00]} 2. Nf3 {[%emt 0:00:21]} d6 {[%emt 0:00:10]} 3. d4 {[%emt 0:00:41]} cxd4 {[%emt 0:00:37]} 4. Nxd4 {[%emt 0:00:07]} Nf6 {[%emt 0:00:14]} 5. Nc3 {[%emt 0:00:05]} a6 {[%emt 0:01:20]} 6. Be3 {[%emt 0:00:09]} e6 {[%emt 0:01:06]} 7. f3 {[%emt 0:00:19]} h5 {[%emt 0:04:05]} 8. Qd2 {[%emt 0:02:07]} b5 {[%emt 0:01:42]} 9. a4 {[%emt 0:00:48]} b4 {[%emt 0:05:16]} 10. Na2 {[%emt 0:00:34]} d5 {[%emt 0:02:35]} 11. e5 {[%emt 0:04:59]} Nfd7 {[%emt 0:00:24]} 12. f4 {[%emt 0:00:23]} Nc5 {[%emt 0:08:45]} 13. Bd3 {[%emt 0:01:30]} Nxd3+ {[%emt 0:05:51]} 14. cxd3 {[%emt 0:02:41]} a5 {[%emt 0:03:11]} 15. O-O {[%emt 0:02:23]} g6 {[%emt 0:01:39]} 16. Nc1 {[%emt 0:05:02]} Na6 {[%emt 0:11:47]} 17. Ncb3 {[%emt 0:11:05]} Nc5 {[%emt 0:05:05]} 18. Nxc5 {[%emt 0:04:55]} Bxc5 {[%emt 0:00:02]} 19. Rfc1 {[%emt 0:05:04]} Bxd4 {[%emt 0:06:08]} 20. Bxd4 {[%emt 0:01:36]} O-O {[%emt 0:04:14]} 21. g3 {[%emt 0:19:03]} Kh7 {[%emt 0:09:13]} 22. h4 {[%emt 0:02:27]} Ba6 {[%emt 0:09:44]} 23. b3 {[%emt 0:01:28]} Rc8 {[%emt 0:03:57]} 24. Rxc8 {[%emt 0:03:37]} Qxc8 {[%emt 0:00:26]} 25. Rc1 {[%emt 0:00:12]} Qd7 {[%emt 0:03:36]} 26. Rc2 {[%emt 0:02:13]} Rc8 {[%emt 0:01:50]} 27. Qc1 {[%emt 0:01:13]} Rxc2 {[%emt 0:03:08]} 28. Qxc2 {[%emt 0:00:05]} Kg7 {[%emt 0:00:33]} 29. Kf2 {[%emt 0:00:10]} Kg8 {[%emt 0:00:48]} 30. Bb6 {[%emt 0:06:45]} d4 {[%emt 0:01:34]} 31. Qc7 {[%emt 0:00:26]} Qxc7 {[%emt 0:01:50]} 32. Bxc7 {[%emt 0:00:02]} Bxd3 {[%emt 0:00:08]} 33. Bxa5 {[%emt 0:00:04]} Kf8 {[%emt 0:00:20]} 34. Bxb4+ {[%emt 0:00:07]} Ke8 {[%emt 0:00:05]} 35. Bc5 {[%emt 0:00:41]} Bc2 {[%emt 0:00:25]} 36. Bxd4 {[%emt 0:00:22]} Bxb3 {[%emt 0:00:06]} 37. a5 {[%emt 0:00:05]} Bc4 {[%emt 0:00:11]} 38. Ke3 {[%emt 0:00:06]} Kd7 {[%emt 0:00:08]} 39. Bb6 {[%emt 0:00:27]} Kc6 {[%emt 0:00:07]} 40. Kd4 {[%emt 0:00:21]} Ba6 {[%emt 0:01:34]} 41. Bd8 {[%emt 0:00:05]} 1/2-1/2

[Event "ESP-chT 2nd Division 2019"]
[Site "Linares"]
[Date "2019.08.20"]
[Round "2.32"]
[White "Silva Rodriguez, Julio Jose"]
[Black "Rubio Tapia, Jose Juan"]
[Result "1-0"]
[ECO "C43"]
[WhiteElo "2362"]
[BlackElo "2113"]
[Annotator "ChessBase"]
[PlyCount "85"]
[EventDate "2019.08.19"]
[EventType "team-tourn"]
[EventCountry "ESP"]
[SourceTitle "playchess.com"]
[Source "ChessBase"]
[SourceQuality "1"]
[TimeControl "5400+30"]

1. e4 {[%emt 0:00:00]} e5 {[%emt 0:02:08]} 2. Nf3 {[%emt 0:00:00]} Nf6 {[%emt 0:00:12]} 3. d4 {[%emt 0:00:08]} exd4 {[%emt 0:00:37]} 4. e5 {[%emt 0:01:04]} Ne4 {[%emt 0:00:18]} 5. Qxd4 {[%emt 0:00:19]} d5 {[%emt 0:00:44]} 6. exd6 {[%emt 0:02:34]} Nxd6 {[%emt 0:00:15]} 7. Bf4 {[%emt 0:00:42]} Nc6 {[%emt 0:02:40]} 8. Qa4 {[%emt 0:03:59]} Bd7 {[%emt 0:06:24]} 9. Nc3 {[%emt 0:02:54]} Ne5 {[%emt 0:16:54]} 10. Qb3 {[%emt 0:03:24]} Nxf3+ {[%emt 0:02:43]} 11. gxf3 {[%emt 0:00:08]} Bc6 {[%emt 0:20:31]} 12. O-O-O {[%emt 0:08:55]} Qf6 {[%emt 0:11:58]} 13. Re1+ {[%emt 0:13:19]} Be7 {[%emt 0:00:20]} 14. Bxd6 {[%emt 0:13:27]} Qxd6 {[%emt 0:05:43]} 15. Nb5 {[%emt 0:01:23]} Qf4+ {[%emt 0:04:29]} 16. Kb1 {[%emt 0:03:18]} Rd8 {[%emt 0:15:19]} 17. Bc4 {[%emt 0:23:58]} a6 {[%emt 0:02:07]} 18. Nc3 {[%emt 0:11:14]} Bxf3 {[%emt 0:01:26]} 19. Rhg1 {[%emt 0:01:14]} Kf8 {[%emt 0:01:04]} 20. Bd5 {[%emt 0:02:32]} b6 {[%emt 0:01:25]} 21. Bxf3 {[%emt 0:03:33]} Qxf3 {[%emt 0:00:12]} 22. Qc4 {[%emt 0:00:27]} Bd6 {[%emt 0:00:50]} 23. Re3 {[%emt 0:00:37]} Qf4 {[%emt 0:01:03]} 24. Qe2 {[%emt 0:01:26]} g6 {[%emt 0:00:21]} 25. Rf3 {[%emt 0:00:26]} Qxh2 {[%emt 0:00:51]} 26. Rd1 {[%emt 0:00:08]} Kg7 {[%emt 0:00:28]} 27. Qc4 {[%emt 0:00:37]} f6 {[%emt 0:00:48]} 28. Ne4 {[%emt 0:01:16]} Be5 {[%emt 0:00:03]} 29. Rfd3 {[%emt 0:00:13]} Rxd3 {[%emt 0:00:49]} 30. Qxd3 {[%emt 0:00:04]} Rf8 {[%emt 0:00:36]} 31. Qxa6 {[%emt 0:00:24]} Rf7 {[%emt 0:00:24]} 32. Qd3 {[%emt 0:01:02]} h6 {[%emt 0:00:28]} 33. a4 {[%emt 0:00:31]} f5 {[%emt 0:00:21]} 34. Nc3 {[%emt 0:00:49]} Qxf2 {[%emt 0:00:16]} 35. Nd5 {[%emt 0:00:34]} h5 {[%emt 0:00:55]} 36. Qb5 {[%emt 0:00:29]} Qg3 {[%emt 0:00:47]} 37. Qe8 {[%emt 0:00:18]} h4 {[%emt 0:00:47]} 38. Rd3 {[%emt 0:00:26]} Qe1+ {[%emt 0:00:25]} 39. Ka2 {[%emt 0:00:01]} Bg3 {[%emt 0:00:25]} 40. Re3 {[%emt 0:00:15]} Qd2 {[%emt 0:00:28]} 41. Ne7 {[%emt 0:00:21]} Rxe7 {[%emt 0:01:12]} 42. Rxe7+ {[%emt 0:00:18]} Kh6 {[%emt 0:00:05]} 43. Re6 {[%emt 0:00:21]} 1-0

[Event "ESP-chT 2nd Division 2019"]
[Site "Linares"]
[Date "2019.08.20"]
[Round "2.33"]
[White "Redondo Benavente, Ana"]
[Black "Silva Rodriguez, Fernando"]
[Result "1/2-1/2"]
[ECO "B11"]
[WhiteElo "2071"]
[BlackElo "2253"]
[Annotator "ChessBase"]
[PlyCount "85"]
[EventDate "2019.08.19"]
[EventType "team-tourn"]
[EventCountry "ESP"]
[SourceTitle "playchess.com"]
[Source "ChessBase"]
[SourceQuality "1"]
[TimeControl "5400+30"]

1. e4 {[%emt 0:02:22]} c6 {[%emt 0:00:03]} 2. Nc3 {[%emt 0:00:26]} d5 {[%emt 0:00:07]} 3. Nf3 {[%emt 0:00:06]} Bg4 {[%emt 0:00:07]} 4. h3 {[%emt 0:00:22]} Bxf3 {[%emt 0:00:08]} 5. Qxf3 {[%emt 0:00:03]} e6 {[%emt 0:00:13]} 6. g3 {[%emt 0:04:49]} Nd7 {[%emt 0:00:19]} 7. d4 {[%emt 0:00:24]} Bb4 {[%emt 0:08:32]} 8. Bd2 {[%emt 0:04:59]} Ngf6 {[%emt 0:03:52]} 9. e5 {[%emt 0:05:27]} Bxc3 {[%emt 0:00:52]} 10. Bxc3 {[%emt 0:02:32]} Ne4 {[%emt 0:00:08]} 11. Qe3 {[%emt 0:02:07]} f6 {[%emt 0:23:02]} 12. Bg2 {[%emt 0:04:34]} Nxc3 {[%emt 0:01:39]} 13. Qxc3 {[%emt 0:00:24]} O-O {[%emt 0:01:19]} 14. O-O {[%emt 0:03:37]} f5 {[%emt 0:08:53]} 15. f4 {[%emt 0:01:03]} Qe7 {[%emt 0:04:13]} 16. Qd3 {[%emt 0:04:43]} b5 {[%emt 0:02:07]} 17. a4 {[%emt 0:01:34]} b4 {[%emt 0:07:24]} 18. a5 {[%emt 0:01:42]} c5 {[%emt 0:01:52]} 19. c4 {[%emt 0:02:48]} bxc3 {[%emt 0:00:19]} 20. bxc3 {[%emt 0:02:40]} c4 {[%emt 0:00:34]} 21. Qc2 {[%emt 0:00:27]} Nb8 {[%emt 0:04:40]} 22. Rfb1 {[%emt 0:06:05]} Nc6 {[%emt 0:00:40]} 23. Qa4 {[%emt 0:02:06]} Qd7 {[%emt 0:03:46]} 24. Rb5 {[%emt 0:07:18]} Rab8 {[%emt 0:00:20]} 25. Rab1 {[%emt 0:01:51]} Rxb5 {[%emt 0:02:40]} 26. Rxb5 {[%emt 0:00:07]} Rb8 {[%emt 0:07:28]} 27. Rxb8+ {[%emt 0:11:10]} Nxb8 {[%emt 0:00:11]} 28. Qa3 {[%emt 0:01:36]} Qc7 {[%emt 0:01:40]} 29. Bf3 {[%emt 0:02:39]} Kf7 {[%emt 0:10:21]} 30. Kf2 {[%emt 0:01:45]} Qe7 {[%emt 0:00:21]} 31. Qb2 {[%emt 0:01:01]} Qc7 {[%emt 0:00:25]} 32. Qb5 {[%emt 0:02:42]} a6 {[%emt 0:03:39]} 33. Qb4 {[%emt 0:00:16]} Nc6 {[%emt 0:00:31]} 34. Qc5 {[%emt 0:00:06]} Qb7 {[%emt 0:00:21]} 35. g4 {[%emt 0:03:51]} Ne7 {[%emt 0:01:32]} 36. Kg3 {[%emt 0:06:38]} Qb2 {[%emt 0:01:03]} 37. Qa7 {[%emt 0:00:30]} Qxc3 {[%emt 0:01:14]} 38. gxf5 {[%emt 0:01:04]} Qe1+ {[%emt 0:00:05]} 39. Kg2 {[%emt 0:00:06]} Qd2+ {[%emt 0:00:19]} 40. Kg3 {[%emt 0:00:07]} Qe1+ {[%emt 0:01:54]} 41. Kg2 {[%emt 0:00:04]} Qd2+ {[%emt 0:00:54]} 42. Kg3 {[%emt 0:00:07]} Qe1+ {[%emt 0:00:32]} 43. Kg2 {[%emt 0:00:08]} 1/2-1/2

[Event "ESP-chT 2nd Division 2019"]
[Site "Linares"]
[Date "2019.08.20"]
[Round "2.34"]
[White "Nieves Cabanes, Javier"]
[Black "Navarro Ortiz De Orruno, Pablo"]
[Result "1-0"]
[ECO "A06"]
[WhiteElo "2211"]
[BlackElo "2057"]
[Annotator "ChessBase"]
[PlyCount "87"]
[EventDate "2019.08.19"]
[EventType "team-tourn"]
[EventCountry "ESP"]
[SourceTitle "playchess.com"]
[Source "ChessBase"]
[SourceQuality "1"]
[TimeControl "5400+30"]

1. Nf3 {[%emt 0:00:00]} d5 {[%emt 0:01:04]} 2. c4 {[%emt 0:00:00]} c6 {[%emt 0:00:12]} 3. d4 {[%emt 0:02:15]} Nf6 {[%emt 0:00:23]} 4. Qc2 {[%emt 0:00:07]} e6 {[%emt 0:07:29]} 5. Nbd2 {[%emt 0:00:08]} Nbd7 {[%emt 0:00:42]} 6. g3 {[%emt 0:00:59]} Bd6 {[%emt 0:00:42]} 7. Bg2 {[%emt 0:00:16]} O-O {[%emt 0:01:05]} 8. O-O {[%emt 0:00:49]} Qe7 {[%emt 0:10:34]} 9. Rd1 {[%emt 0:02:00]} h6 {[%emt 0:08:02]} 10. b3 {[%emt 0:10:57]} b6 {[%emt 0:09:31]} 11. e4 {[%emt 0:04:08]} Nxe4 {[%emt 0:14:17]} 12. Nxe4 {[%emt 0:00:07]} dxe4 {[%emt 0:00:06]} 13. Qxe4 {[%emt 0:00:07]} Bb7 {[%emt 0:01:45]} 14. Ne5 {[%emt 0:05:37]} Rac8 {[%emt 0:01:51]} 15. Nxd7 {[%emt 0:08:33]} Qxd7 {[%emt 0:00:24]} 16. Qg4 {[%emt 0:00:07]} f5 {[%emt 0:21:18]} 17. Qe2 {[%emt 0:00:42]} Rce8 {[%emt 0:02:25]} 18. c5 {[%emt 0:02:15]} Bc7 {[%emt 0:02:23]} 19. f4 {[%emt 0:04:50]} Bd8 {[%emt 0:01:12]} 20. a4 {[%emt 0:02:38]} Bf6 {[%emt 0:00:15]} 21. Bb2 {[%emt 0:00:06]} g5 {[%emt 0:02:30]} 22. b4 {[%emt 0:01:17]} Qc7 {[%emt 0:01:53]} 23. Rf1 {[%emt 0:05:48]} Qg7 {[%emt 0:04:08]} 24. Rad1 {[%emt 0:02:39]} bxc5 {[%emt 0:00:32]} 25. bxc5 {[%emt 0:00:03]} Rf7 {[%emt 0:00:07]} 26. Qc4 {[%emt 0:02:24]} Rd7 {[%emt 0:00:30]} 27. fxg5 {[%emt 0:02:13]} Qxg5 {[%emt 0:00:47]} 28. Rfe1 {[%emt 0:02:13]} Rde7 {[%emt 0:01:49]} 29. Bc1 {[%emt 0:00:20]} Qg7 {[%emt 0:02:05]} 30. Bf4 {[%emt 0:00:27]} Kh8 {[%emt 0:01:34]} 31. Bd6 {[%emt 0:01:58]} Rf7 {[%emt 0:00:39]} 32. Kh1 {[%emt 0:02:28]} h5 {[%emt 0:00:55]} 33. Rxe6 {[%emt 0:03:18]} Rg8 {[%emt 0:00:07]} 34. Qe2 {[%emt 0:05:08]} Qg6 {[%emt 0:02:02]} 35. Rf1 {[%emt 0:04:59]} Bc8 {[%emt 0:00:13]} 36. Rxf6 {[%emt 0:02:17]} Rxf6 {[%emt 0:00:08]} 37. Be5 {[%emt 0:00:04]} Rgf8 {[%emt 0:01:40]} 38. Bxc6 {[%emt 0:01:08]} Kh7 {[%emt 0:00:27]} 39. Bxf6 {[%emt 0:00:46]} Rxf6 {[%emt 0:00:06]} 40. Bf3 {[%emt 0:02:34]} h4 {[%emt 0:00:25]} 41. Qe7+ {[%emt 0:01:19]} Rf7 {[%emt 0:00:52]} 42. Qxh4+ {[%emt 0:00:09]} Kg8 {[%emt 0:00:28]} 43. Re1 {[%emt 0:01:27]} Bd7 {[%emt 0:00:28]} 44. d5 {[%emt 0:00:49]} 1-0

[Event "ESP-chT 2nd Division 2019"]
[Site "Linares"]
[Date "2019.08.20"]
[Round "2.35"]
[White "Gallardo Alarcon, Aurelio"]
[Black "Ortega Sanchis, Angela"]
[Result "1-0"]
[ECO "A45"]
[WhiteElo "1906"]
[BlackElo "1675"]
[Annotator "NA"]
[PlyCount "145"]
[EventDate "2019.08.19"]
[EventType "team-tourn"]
[EventCountry "ESP"]
[SourceTitle "playchess.com"]
[Source "ChessBase"]
[SourceQuality "1"]
[TimeControl "5400+30"]

1. d4 {[%emt 0:06:14]} Nf6 {[%emt 0:00:00]} 2. Bg5 {[%emt 0:00:06]} g6 {[%emt 0:00:00]} 3. Bxf6 {[%emt 0:00:08]} exf6 {[%emt 0:00:00]} 4. e3 {[%emt 0:00:08]} Bg7 {[%emt 0:00:04]} 5. Nf3 {[%emt 0:01:09]} O-O {[%emt 0:00:20]} 6. g3 {[%emt 0:00:28]} f5 {[%emt 0:00:26]} 7. Bg2 {[%emt 0:00:08]} d6 {[%emt 0:00:12]} 8. O-O {[%emt 0:00:08]} Nd7 {[%emt 0:00:03]} 9. c4 {[%emt 0:01:11]} Nf6 {[%emt 0:01:01]} 10. Nc3 {[%emt 0:01:08]} Re8 {[%emt 0:01:22]} 11. b4 {[%emt 0:05:46]} Ne4 {[%emt 0:08:03]} 12. Qd3 {[%emt 0:11:31]} Be6 {[%emt 0:11:03]} 13. Rfc1 {[%emt 0:08:01]} Bd7 {[%emt 0:13:56]} 14. Nd2 {[%emt 0:05:26]} Nxc3 {[%emt 0:10:55]} 15. Qxc3 {[%emt 0:00:52]} c6 16. a4 {[%emt 0:10:24]} Qc7 {[%emt 0:24:29]} 17. Rcb1 {[%emt 0:10:20]} b6 {[%emt 0:12:16]} 18. Ra3 {[%emt 0:25:21]} Rab8 {[%emt 0:03:38]} 19. a5 {[%emt 0:03:51]} bxa5 {[%emt 0:06:29]} 20. Rxa5 {[%emt 0:01:22]} c5 {[%emt 0:00:39]} 21. Qa1 {[%emt 0:04:43]} cxd4 {[%emt 0:03:38]} 22. Rxa7 {[%emt 0:01:02]} Qc8 {[%emt 0:01:46]} 23. exd4 {[%emt 0:00:31]} Re2 {[%emt 0:00:34]} 24. Nf3 {[%emt 0:00:44]} Be8 {[%emt 0:00:30]} 25. Qa6 {[%emt 0:00:34]} Qc6 {[%emt 0:00:34]} 26. Qxc6 {[%emt 0:00:51]} Bxc6 {[%emt 0:00:01]} 27. Ra6 {[%emt 0:00:35]} Be4 {[%emt 0:00:20]} 28. Rd1 {[%emt 0:00:34]} Rxb4 {[%emt 0:00:34]} 29. Rxd6 {[%emt 0:00:38]} Rxc4 {[%emt 0:00:52]} 30. Nd2 {[%emt 0:00:33]} Rb4 {[%emt 0:00:42]} 31. Bf1 {[%emt 0:00:32]} Bd3 {[%emt 0:00:32]} 32. Bxe2 {[%emt 0:00:09]} Bxe2 {[%emt 0:00:01]} 33. Re1 {[%emt 0:00:15]} Bb5 {[%emt 0:00:25]} 34. Nf1 {[%emt 0:00:59]} Rxd4 {[%emt 0:00:53]} 35. Rxd4 {[%emt 0:00:22]} Bxd4 {[%emt 0:00:00]} 36. Rd1 {[%emt 0:00:20]} Ba7 {[%emt 0:01:07]} 37. h4 {[%emt 0:00:40]} Kg7 {[%emt 0:00:27]} 38. Kg2 {[%emt 0:00:35]} Bc6+ {[%emt 0:00:29]} 39. f3 {[%emt 0:00:21]} Bb5 {[%emt 0:00:35]} 40. Rb1 {[%emt 0:00:16]} Bd3 {[%emt 0:00:31]} 41. Rb3 {[%emt 0:00:27]} Bc4 42. Ra3 {[%emt 0:00:32]} Bb8 {[%emt 0:00:47]} 43. Ne3 {[%emt 0:00:22]} Be6 {[%emt 0:00:19]} 44. Nc2 {[%emt 0:00:35]} Be5 {[%emt 0:00:19]} 45. Kf2 {[%emt 0:01:00]} h6 {[%emt 0:00:30]} 46. Ne3 {[%emt 0:00:32]} Bd4 {[%emt 0:00:30]} 47. f4 {[%emt 0:00:24]} Bxe3+ {[%emt 0:00:29]} 48. Kxe3 {[%emt 0:00:02]} Bd5 {[%emt 0:00:53]} 49. Kd4 {[%emt 0:00:07]} Be4 {[%emt 0:00:26]} 50. Ke5 {[%emt 0:00:27]} Bc2 {[%emt 0:00:43]} 51. Ra7 {[%emt 0:00:18]} Bd1 {[%emt 0:00:31]} 52. Kd6 {[%emt 0:00:19]} Bf3 {[%emt 0:00:33]} 53. Ke7 {[%emt 0:00:23]} Bd1 {[%emt 0:00:24]} 54. Ra6 {[%emt 0:00:40]} Bb3 {[%emt 0:00:20]} 55. Rb6 {[%emt 0:00:37]} Bc4 {[%emt 0:00:07]} 56. Rc6 {[%emt 0:00:09]} Bb3 {[%emt 0:00:12]} 57. Rd6 {[%emt 0:00:07]} Ba2 {[%emt 0:00:31]} 58. h5 {[%emt 0:01:50]} gxh5 {[%emt 0:01:17]} 59. Rf6 {[%emt 0:00:26]} Bb3 {[%emt 0:00:39]} 60. Rxf5 {[%emt 0:00:16]} Kg6 {[%emt 0:00:31]} 61. Rf6+ {[%emt 0:00:34]} Kg7 {[%emt 0:00:11]} 62. Rb6 {[%emt 0:00:06]} Ba2 {[%emt 0:00:20]} 63. f5 {[%emt 0:01:09]} Bc4 {[%emt 0:00:49]} 64. Rb8 {[%emt 0:00:06]} Ba2 {[%emt 0:00:21]} 65. Rf8 {[%emt 0:00:42]} Bb3 {[%emt 0:00:11]} 66. f6+ {[%emt 0:00:22]} Kg6 {[%emt 0:00:59]} 67. Rg8+ {[%emt 0:00:02]} Kf5 {[%emt 0:00:34]} 68. Rg7 {[%emt 0:00:08]} h4 {[%emt 0:00:35]} 69. gxh4 {[%emt 0:00:07]} h5 {[%emt 0:00:05]} 70. Rxf7 {[%emt 0:00:06]} Kg4 {[%emt 0:00:23]} 71. Rg7+ {[%emt 0:00:40]} Kxh4 {[%emt 0:00:03]} 72. f7 {[%emt 0:00:25]} Bxf7 {[%emt 0:00:06]} 73. Kxf7 {[%emt 0:00:01]} 1-0

[Event "ESP-chT 2nd Division 2019"]
[Site "Linares"]
[Date "2019.08.20"]
[Round "2.36"]
[White "Portela Peleteiro, Alberto"]
[Black "Aloma Vidal, Robert"]
[Result "1/2-1/2"]
[ECO "B12"]
[WhiteElo "2375"]
[BlackElo "2419"]
[Annotator "ChessBase"]
[PlyCount "60"]
[EventDate "2019.08.19"]
[EventType "team-tourn"]
[EventCountry "ESP"]
[SourceTitle "playchess.com"]
[Source "ChessBase"]
[SourceQuality "1"]
[TimeControl "5400+30"]

1. e4 {[%emt 0:00:00]} c6 {[%emt 0:00:00]} 2. d4 {[%emt 0:00:00]} d5 {[%emt 0:00:00]} 3. e5 {[%emt 0:00:00]} Bf5 {[%emt 0:01:07]} 4. Nf3 {[%emt 0:00:04]} e6 {[%emt 0:00:05]} 5. Be2 {[%emt 0:00:04]} Ne7 {[%emt 0:00:19]} 6. O-O {[%emt 0:00:26]} c5 {[%emt 0:00:06]} 7. dxc5 {[%emt 0:04:41]} Nec6 {[%emt 0:01:20]} 8. Be3 {[%emt 0:01:44]} Nd7 {[%emt 0:01:05]} 9. c4 {[%emt 0:13:05]} dxc4 {[%emt 0:03:56]} 10. Na3 {[%emt 0:01:40]} Bxc5 {[%emt 0:07:13]} 11. Bxc5 {[%emt 0:03:11]} Nxc5 {[%emt 0:00:08]} 12. Nxc4 {[%emt 0:00:03]} O-O {[%emt 0:00:38]} 13. Rc1 {[%emt 0:02:05]} Nd3 {[%emt 0:07:41]} 14. Rc3 {[%emt 0:05:36]} Nf4 {[%emt 0:00:57]} 15. Nd6 {[%emt 0:10:52]} Bg4 {[%emt 0:09:45]} 16. h3 {[%emt 0:14:04]} Nxe2+ {[%emt 0:09:24]} 17. Qxe2 {[%emt 0:00:09]} Nd4 {[%emt 0:09:56]} 18. Qe3 {[%emt 0:01:40]} Nxf3+ {[%emt 0:00:14]} 19. gxf3 {[%emt 0:02:16]} Bxh3 {[%emt 0:01:48]} 20. Rfc1 {[%emt 0:00:12]} f6 {[%emt 0:15:19]} 21. Rc7 {[%emt 0:06:13]} fxe5 {[%emt 0:02:35]} 22. Qxe5 {[%emt 0:00:45]} Qf6 {[%emt 0:01:20]} 23. Qxf6 {[%emt 0:00:25]} Rxf6 {[%emt 0:01:31]} 24. Rxb7 {[%emt 0:02:18]} e5 {[%emt 0:03:01]} 25. Rcc7 {[%emt 0:06:22]} Rxd6 {[%emt 0:10:50]} 26. Rxg7+ {[%emt 0:00:05]} Kf8 {[%emt 0:00:06]} 27. Rgf7+ {[%emt 0:00:08]} Kg8 {[%emt 0:00:47]} 28. Rg7+ {[%emt 0:00:04]} Kf8 {[%emt 0:00:04]} 29. Rgf7+ {[%emt 0:00:04]} Kg8 {[%emt 0:03:56]} 30. Rg7+ {[%emt 0:00:05]} Kf8 1/2-1/2

[Event "ESP-chT 2nd Division 2019"]
[Site "Linares"]
[Date "2019.08.20"]
[Round "2.37"]
[White "Gomez Anadon, Daniel"]
[Black "Veiga, Jose Francisco R P N"]
[Result "0-1"]
[ECO "B27"]
[WhiteElo "2274"]
[BlackElo "2346"]
[Annotator "ChessBase"]
[PlyCount "90"]
[EventDate "2019.08.19"]
[EventType "team-tourn"]
[EventCountry "ESP"]
[SourceTitle "playchess.com"]
[Source "ChessBase"]
[SourceQuality "1"]
[TimeControl "5400+30"]

1. e4 {[%emt 0:00:00]} c5 {[%emt 0:00:32]} 2. Nf3 {[%emt 0:00:00]} b6 {[%emt 0:00:23]} 3. g3 {[%emt 0:07:28]} Bb7 {[%emt 0:00:25]} 4. d3 {[%emt 0:00:10]} d5 {[%emt 0:12:02]} 5. Bg2 {[%emt 0:04:32]} dxe4 {[%emt 0:02:09]} 6. Ng5 {[%emt 0:01:22]} Qc7 {[%emt 0:06:42]} 7. Bxe4 {[%emt 0:02:22]} Nf6 {[%emt 0:02:41]} 8. Bxb7 {[%emt 0:08:18]} Qxb7 {[%emt 0:00:07]} 9. Qf3 {[%emt 0:05:36]} Qxf3 {[%emt 0:05:11]} 10. Nxf3 {[%emt 0:00:06]} Nc6 {[%emt 0:00:35]} 11. a4 {[%emt 0:10:29]} Nd5 {[%emt 0:03:06]} 12. Na3 {[%emt 0:09:33]} g6 {[%emt 0:07:55]} 13. Bd2 {[%emt 0:05:30]} Bg7 {[%emt 0:00:21]} 14. O-O-O {[%emt 0:00:24]} a6 {[%emt 0:09:41]} 15. c3 {[%emt 0:01:18]} f6 {[%emt 0:02:33]} 16. Rhe1 {[%emt 0:00:53]} Kf7 {[%emt 0:01:33]} 17. Kc2 {[%emt 0:04:50]} Rhb8 {[%emt 0:07:59]} 18. Bc1 {[%emt 0:10:01]} b5 {[%emt 0:03:23]} 19. Be3 {[%emt 0:09:23]} Nxe3+ {[%emt 0:01:04]} 20. Rxe3 {[%emt 0:00:57]} Na5 {[%emt 0:03:10]} 21. Nd2 {[%emt 0:05:24]} Bh6 {[%emt 0:00:29]} 22. Re4 {[%emt 0:00:41]} Bxd2 {[%emt 0:00:40]} 23. Rxd2 {[%emt 0:01:13]} Ra7 {[%emt 0:01:01]} 24. b4 {[%emt 0:04:23]} cxb4 {[%emt 0:00:32]} 25. cxb4 {[%emt 0:02:06]} Nb7 {[%emt 0:04:21]} 26. a5 {[%emt 0:01:47]} Nd6 {[%emt 0:00:33]} 27. Ree2 {[%emt 0:00:44]} Nf5 {[%emt 0:00:41]} 28. Kb2 {[%emt 0:00:10]} Rd8 {[%emt 0:00:14]} 29. Nc2 {[%emt 0:02:29]} Rad7 {[%emt 0:00:20]} 30. Kc3 {[%emt 0:01:03]} e5 {[%emt 0:00:36]} 31. g4 {[%emt 0:00:36]} Ne7 {[%emt 0:00:16]} 32. d4 {[%emt 0:01:05]} Nd5+ {[%emt 0:00:39]} 33. Kb3 {[%emt 0:00:06]} Nf4 {[%emt 0:00:16]} 34. Re4 {[%emt 0:00:21]} Ne6 {[%emt 0:00:23]} 35. Kc3 {[%emt 0:00:58]} Rc7+ {[%emt 0:00:51]} 36. Kb3 {[%emt 0:00:22]} Rc4 {[%emt 0:00:14]} 37. f3 {[%emt 0:01:16]} exd4 {[%emt 0:01:14]} 38. Ne1 {[%emt 0:00:33]} Ng5 {[%emt 0:00:58]} 39. Ree2 {[%emt 0:00:17]} Rc3+ {[%emt 0:00:17]} 40. Kb2 {[%emt 0:00:24]} Nxf3 {[%emt 0:00:02]} 41. Nxf3 {[%emt 0:00:20]} Rxf3 {[%emt 0:00:02]} 42. Re4 {[%emt 0:00:14]} d3 {[%emt 0:00:36]} 43. Kc3 {[%emt 0:00:35]} g5 {[%emt 0:00:47]} 44. Kb3 {[%emt 0:01:06]} Rf4 {[%emt 0:01:04]} 45. Re3 {[%emt 0:00:30]} Rdd4 {[%emt 0:00:25]} 0-1